bitfinex/quotes_SOLUSD_20250705
["timestamp","ask_amount","ask_price","bid_price","bid_amount"]
[1751738814439,5.09220365,146.74,146.72,0.06]
[1751738814632,5.09220365,146.76,146.72,0.06]
[1751738814834,5.09220365,146.75,146.72,0.06]
[1751738815033,5.09220365,146.74,146.72,0.06]
[1751738815251,6.81431005,146.75,146.72,0.06]
[1751738815546,5.09220365,146.74,146.72,0.06]
[1751738816726,6.81431005,146.75,146.72,0.06]
[1751738816931,5.0933077,146.74,146.72,0.06]
[1751738817132,6.81431005,146.75,146.72,0.06]
[1751738817328,11.90882828,146.74,146.72,0.06]
[1751738817547,6.81523139,146.74,146.72,0.06]
[1751738818750,11.90727197,146.74,146.72,0.06]
[1751738818948,5.09219907,146.73,146.72,0.06]
[1751738819855,46.20743794,146.73,146.72,0.06]
[1751738825371,64.99924837,146.73,146.72,0.06]
[1751738826062,71.35984719,146.73,146.72,0.06]
[1751738826654,97.35984719,146.73,146.72,0.06]
[1751738827248,44.64964886,146.69,146.67,0.1]
[1751738827562,58.1840095,146.68,146.67,0.1]
[1751738827863,64.54327231,146.68,146.67,0.1]
[1751738828269,18.79181043,146.67,146.62,0.1]
[1751738828570,18.64964886,146.65,146.62,0.1]
[1751738828862,18.64964886,146.63,146.62,0.1]
[1751738829066,23.8711913,146.63,146.62,0.1]
[1751738829272,49.8711913,146.63,146.62,0.1]
[1751738829643,49.72902973,146.63,146.62,0.1]
[1751738830144,44.79181043,146.63,146.62,0.1]
[1751738830682,30.83461197,146.63,146.62,1e-08]
[1751738830847,37.65449875,146.63,146.62,1e-08]
[1751738831368,18.64964886,146.59,146.57,0.1]
[1751738831572,53.08964886,146.58,146.57,0.1]
[1751738833275,60.05402355,146.58,146.57,0.1]
[1751738837695,60.07402355,146.58,146.57,0.1]
[1751738848003,18.64964886,146.53,146.49,6.1057]
[1751738848381,34.82,146.52,146.49,6.1057]
[1751738848582,34.82,146.52,146.5,7.11520173]
[1751738848885,34.82,146.52,146.49,6.1057]
[1751738849098,34.82,146.52,146.48,1.5156]
[1751738849600,34.82,146.52,146.48,8.63080173]
[1751738850197,41.64511553,146.52,146.48,1.5156]
[1751738850401,41.64511553,146.52,146.48,8.63080173]
[1751738852106,34.82,146.52,146.48,8.63080173]
[1751738852290,34.82,146.52,146.49,7.11520173]
[1751738854690,34.82,146.52,146.48,1.5156]
[1751738854895,34.82,146.52,146.48,8.63080173]
[1751738856905,34.82,146.52,146.49,7.11520173]
[1751738858797,34.82,146.52,146.48,15.45767042]
[1751738859599,183.62,146.53,146.51,7.11520173]
[1751738860587,148.8,146.53,146.51,7.11520173]
[1751738861710,148.8,146.53,146.49,6.82596505]
[1751738862011,148.8,146.53,146.51,7.11520173]
[1751738862182,148.8,146.53,146.49,6.82596505]
[1751738862387,148.8,146.53,146.51,7.11520173]
[1751738863011,148.8,146.53,146.52,7.11520173]
[1751738863210,34.82,146.55,146.52,7.11520173]
[1751738865313,41.64369366,146.55,146.48,1.5156]
[1751738865612,41.64369366,146.55,146.5,7.11520173]
[1751738866392,41.64369366,146.55,146.49,13.94145737]
[1751738867290,41.64369366,146.55,146.49,6.82625564]
[1751738867495,41.64369366,146.55,146.49,13.94145737]
[1751738867695,41.64369366,146.55,146.5,7.11520173]
[1751738867996,41.64369366,146.55,146.49,13.94145737]
[1751738868195,5.05154711,146.54,146.49,7.11520173]
[1751738869510,5.05154711,146.54,146.49,13.94150591]
[1751738869711,5.05154711,146.54,146.49,6.82630418]
[1751738869918,5.05154711,146.54,146.49,7.11520173]
[1751738870214,6.82500682,146.52,146.48,1.5156]
[1751738870424,5.05154711,146.51,146.48,1.5156]
[1751738870795,5.05154711,146.51,146.47,7.17520173]
[1751738871005,4.72266281,146.56,146.52,26.0]
[1751738871212,0.03,146.56,146.55,26.0]
[1751738871514,0.03,146.56,146.55,33.11520173]
[1751738872414,0.03,146.56,146.55,39.93881141]
[1751738877923,0.03,146.56,146.55,7.11520173]
[1751738879716,0.03,146.56,146.54,6.82390671]
[1751738879898,0.03,146.56,146.55,7.11520173]
[1751738880304,0.03,146.56,146.54,7.11520173]
[1751738880805,0.03,146.56,146.55,7.11520173]
[1751738881931,0.03,146.56,146.55,13.93881141]
[1751738883121,0.03,146.56,146.52,6.82500682]
[1751738883322,0.03,146.56,146.55,7.11520173]
[1751738887331,0.03,146.56,146.55,13.93881141]
[1751738891638,0.03,146.56,146.52,24.02968545]
[1751738891832,0.03,146.56,146.55,7.11520173]
[1751738894437,0.03,146.56,146.55,13.93881141]
[1751738894640,0.03,146.56,146.55,6.82360968]
[1751738894817,0.03,146.56,146.55,13.93881141]
[1751738901638,0.03,146.56,146.53,6.82454104]
[1751738901837,0.03,146.56,146.55,7.11520173]
[1751738902747,0.03,146.56,146.55,13.93881141]
[1751738903944,0.03,146.56,146.55,13.99881141]
[1751738904749,0.03,146.56,146.55,0.06]
[1751738906749,6.8531441,146.56,146.55,0.06]
[1751738908244,25.50279296,146.56,146.55,0.06]
[1751738908423,30.59249282,146.56,146.55,0.06]
[1751738909042,179.39249282,146.56,146.55,0.06]
[1751738909347,30.73465439,146.56,146.55,0.06]
[1751738909923,0.14216157,146.55,146.49,7.17520173]
[1751738910123,18.64964886,146.53,146.49,7.17520173]
[1751738911625,6.82500682,146.52,146.49,0.06]
[1751738911826,6.82500682,146.52,146.49,7.17520173]
[1751738916630,6.82500682,146.52,146.49,0.06]
[1751738916836,6.82500682,146.52,146.49,7.17520173]
[1751738917857,6.82500682,146.52,146.5,7.11520173]
[1751738918258,18.64964886,146.53,146.51,7.11520173]
[1751738918259,25.47438417,146.53,146.51,7.11520173]
[1751738919661,25.47438417,146.53,146.49,0.06]
[1751738919860,25.47438417,146.53,146.51,7.11520173]
[1751738922770,25.47438417,146.53,146.5,7.11520173]
[1751738922941,25.47438417,146.53,146.49,0.06]
[1751738923140,25.47438417,146.53,146.5,7.11520173]
[1751738924672,25.47438417,146.53,146.49,0.06]
[1751738924866,25.47438417,146.53,146.5,7.11520173]
[1751738926669,25.47438417,146.53,146.49,0.06]
[1751738926847,25.47438417,146.53,146.5,7.11520173]
[1751738927869,25.47438417,146.53,146.49,7.17520173]
[1751738930170,25.47438417,146.53,146.5,7.11520173]
[1751738931678,25.47438417,146.53,146.49,7.17520173]
[1751738932060,148.8,146.52,146.49,0.06]
[1751738932269,18.64964886,146.51,146.49,0.06]
[1751738932574,53.44964886,146.51,146.49,0.06]
[1751738934485,6.82593856,146.5,146.49,0.06]
[1751738935582,41.62562997,146.51,146.49,7.17520173]
[1751738935757,41.62562997,146.51,146.5,7.11520173]
[1751738936474,41.62562997,146.51,146.49,7.17520173]
[1751738936674,41.62562997,146.51,146.49,0.06]
[1751738936974,41.62562997,146.51,146.49,7.17520173]
[1751738940551,155.62512744,146.52,146.5,7.11520173]
[1751738940759,155.62512744,146.52,146.51,7.11520173]
[1751738940956,6.82360968,146.55,146.51,7.11520173]
[1751738941173,34.78,146.54,146.52,7.11520173]
[1751738941482,41.60360968,146.55,146.52,7.11520173]
[1751738942256,5.07857174,146.54,146.52,7.11520173]
[1751738942457,18.64964886,146.53,146.5,7.11520173]
[1751738942676,53.40964886,146.53,146.5,7.11520173]
[1751738944586,6.82500682,146.52,146.5,7.11520173]
[1751738946588,6.82500682,146.52,146.49,0.06]
[1751738946886,6.82500682,146.52,146.5,7.11520173]
[1751738950494,11.91774741,146.52,146.5,7.11520173]
[1751738950872,11.91774741,146.52,146.51,7.11520173]
[1751738951094,5.09274059,146.52,146.51,7.11520173]
[1751738951673,5.09274059,146.52,146.49,0.06]
[1751738951886,5.09274059,146.52,146.51,7.11520173]
[1751738955101,6.82444823,146.54,146.51,7.11520173]
[1751738955273,155.65321886,146.56,146.53,7.11520173]
[1751738955472,155.65321886,146.56,146.51,6.82539509]
[1751738955473,155.65321886,146.56,146.55,7.11520173]
[1751738955799,160.74789962,146.56,146.55,4.55556917]
[1751738957700,160.74789962,146.56,146.54,4.55556917]
[1751738957901,5.09468076,146.55,146.54,7.11821429]
[1751738959183,11.91829044,146.55,146.54,7.11821429]
[1751738959378,5.09468076,146.55,146.54,7.11821429]
[1751738959707,11.91829044,146.55,146.54,7.11821429]
[1751738960913,11.91829044,146.55,146.49,0.06]
[1751738961078,6.82454104,146.53,146.5,7.11821429]
[1751738961401,5.09468076,146.52,146.5,7.11821429]
[1751738964692,11.91981553,146.52,146.5,7.11821429]
[1751738964876,6.82513477,146.52,146.5,7.11821429]
[1751738965304,11.91318195,146.52,146.5,7.11821429]
[1751738965602,6.82513477,146.52,146.5,7.11821429]
[1751738966011,11.91316189,146.52,146.5,7.11821429]
[1751738966195,6.82454104,146.53,146.5,7.11821429]
[1751738966505,5.08817598,146.52,146.5,7.11821429]
[1751738966902,6.82454104,146.53,146.49,7.17821429]
[1751738967102,5.08790258,146.52,146.49,0.06]
[1751738967293,6.82454104,146.53,146.49,0.06]
[1751738967493,5.08790258,146.52,146.49,0.06]
[1751738967693,6.82454104,146.53,146.49,0.06]
[1751738967903,6.82547266,146.51,146.49,0.06]
[1751738968881,6.82454104,146.53,146.49,7.17821429]
[1751738969087,5.08732068,146.52,146.5,7.11821429]
[1751738969287,41.50454104,146.53,146.5,7.11821429]
[1751738969609,5.08764414,146.52,146.5,7.11821429]
[1751738969806,5.08764414,146.51,146.5,7.11821429]
[1751738970008,5.08764414,146.52,146.5,7.11821429]
[1751738970302,41.50454104,146.53,146.5,7.11821429]
[1751738970508,5.08839159,146.52,146.5,7.11821429]
[1751738970709,41.50454104,146.53,146.5,7.11821429]
[1751738970888,5.0887081,146.52,146.5,7.11821429]
[1751738971091,41.50454104,146.53,146.5,7.11821429]
[1751738971296,5.08876077,146.52,146.5,7.11821429]
[1751738971605,41.50454104,146.53,146.5,7.11821429]
[1751738971793,5.08907542,146.52,146.5,7.11821429]
[1751738971997,41.50454104,146.53,146.5,7.11821429]
[1751738972195,5.08907542,146.52,146.5,7.11821429]
[1751738972409,41.50454104,146.53,146.5,7.11821429]
[1751738972704,5.0890742,146.52,146.5,7.11821429]
[1751738972913,41.50454104,146.53,146.5,7.11821429]
[1751738973212,11.91359371,146.52,146.5,7.11821429]
[1751738973413,6.82520519,146.52,146.5,7.11821429]
[1751738974513,6.82520519,146.52,146.49,0.06]
[1751738974690,6.82520519,146.52,146.5,7.11821429]
[1751738976315,6.82520519,146.52,146.49,0.06]
[1751738976532,5.08973356,146.51,146.49,0.06]
[1751738976821,11.91545881,146.5,146.49,0.06]
[1751738977233,30.56510767,146.5,146.49,0.06]
[1751738977726,65.24510767,146.5,146.49,0.06]
[1751738978314,65.24582966,146.5,146.49,0.06]
[1751738980334,46.5961808,146.5,146.49,0.06]
[1751738980627,5.09024224,146.5,146.49,7.17821429]
[1751738980829,5.09024224,146.52,146.49,7.17821429]
[1751738981019,155.62481216,146.53,146.51,7.11821429]
[1751738981222,5.09077107,146.52,146.51,7.11821429]
[1751738982336,148.8,146.53,146.51,7.11821429]
[1751738982541,148.8,146.53,146.52,7.11821429]
[1751738982723,153.8891316,146.53,146.52,7.11821429]
[1751738983727,0.03,146.56,146.52,13.94322111]
[1751738983939,0.03,146.56,146.55,7.11821429]
[1751738984111,5.11930579,146.56,146.55,7.11821429]
[1751738988244,5.11930579,146.56,146.54,7.11821429]
[1751738988426,0.03,146.56,146.54,7.11821429]
[1751738988740,5.08653068,146.55,146.54,7.11821429]
[1751738989437,5.08653068,146.55,146.54,13.94228962]
[1751738989616,0.03,146.56,146.54,13.94228962]
[1751738989819,0.03,146.56,146.55,7.11821429]
[1751738991619,0.03,146.56,146.55,13.94182397]
[1751738996540,5.08751021,146.62,146.56,18.79181043]
[1751738996849,5.08751021,146.63,146.61,7.11821429]
[1751738997042,5.08751021,146.65,146.62,7.11821429]
[1751738997245,5.08751021,146.65,146.63,7.11821429]
[1751738997843,11.906708,146.65,146.63,7.11821429]
[1751738998030,5.08751021,146.64,146.63,7.11821429]
[1751738998233,6.81919779,146.65,146.63,7.11821429]
[1751738999124,11.89135803,146.66,146.64,7.11821429]
[1751738999439,5.07283668,146.66,146.64,7.11821429]
[1751738999926,11.89135903,146.66,146.64,7.11821429]
[1751739000241,34.32287962,146.67,146.64,7.11821429]
[1751739003927,1.5047,146.67,146.64,7.11821429]
[1751739004129,5.0616287,146.68,146.62,6.82035103]
[1751739004328,34.64,146.69,146.65,7.11821429]
[1751739005041,41.45726577,146.69,146.65,7.11821429]
[1751739006931,6.81726577,146.69,146.66,7.11821429]
[1751739007124,6.81726577,146.69,146.67,7.11821429]
[1751739007330,0.2,146.7,146.68,7.11821429]
[1751739007562,0.2,146.7,146.69,7.11821429]
[1751739011136,0.2,146.7,146.68,7.11821429]
[1751739011970,7.01663815,146.7,146.65,7.14]
[1751739012367,41.65663815,146.7,146.66,7.11821429]
[1751739013647,34.84,146.7,146.68,7.11821429]
[1751739013850,41.65667122,146.7,146.68,7.11821429]
[1751739014069,41.65667122,146.7,146.67,7.11821429]
[1751739017481,41.65667122,146.7,146.65,7.14]
[1751739017718,20.25844886,146.69,146.65,7.14]
[1751739018965,20.25844886,146.69,146.63,7.11821429]
[1751739019160,20.25844886,146.69,146.64,7.11821429]
[1751739019574,6.81756203,146.68,146.64,7.11821429]
[1751739021693,6.81756203,146.68,146.62,6.82034712]
[1751739021898,6.81756203,146.68,146.64,7.11821429]
[1751739023898,6.81756203,146.68,146.65,7.11821429]
[1751739024278,6.81756203,146.68,146.66,7.11821429]
[1751739026489,6.81756203,146.68,146.65,7.11821429]
[1751739026802,6.81756203,146.68,146.64,7.11821429]
[1751739028476,6.81756203,146.68,146.63,7.11821429]
[1751739028683,11.87047945,146.68,146.63,7.11821429]
[1751739031300,6.81849174,146.66,146.63,7.11821429]
[1751739032096,6.81849174,146.66,146.64,7.11821429]
[1751739033076,6.81802686,146.67,146.64,7.11821429]
[1751739033492,11.88554076,146.67,146.64,7.11821429]
[1751739033698,6.81802686,146.67,146.64,7.11821429]
[1751739034186,11.88926817,146.67,146.64,7.11821429]
[1751739034387,11.88979534,146.66,146.64,7.11821429]
[1751739034587,6.81855403,146.66,146.64,7.11821429]
[1751739035371,11.89317953,146.66,146.64,7.11821429]
[1751739035577,5.07564909,146.65,146.62,7.11821429]
[1751739035877,5.07564909,146.64,146.62,7.11821429]
[1751739036094,5.07455644,146.63,146.61,7.11821429]
[1751739036398,11.8939567,146.65,146.61,7.11821429]
[1751739036593,5.07455644,146.64,146.62,7.11821429]
[1751739037985,6.81947801,146.64,146.62,7.11821429]
[1751739038296,5.08027773,146.63,146.62,7.11821429]
[1751739038492,6.81947801,146.64,146.62,7.11821429]
[1751739039204,6.81895669,146.65,146.62,7.11821429]
[1751739039503,5.08328396,146.64,146.62,7.11821429]
[1751739039682,6.81895669,146.65,146.62,7.11821429]
[1751739040011,5.08338682,146.64,146.61,7.11821429]
[1751739040227,5.08338682,146.63,146.59,14.23821429]
[1751739040503,5.08338682,146.62,146.59,14.23821429]
[1751739040709,5.08338682,146.61,146.59,14.23821429]
[1751739040889,5.08338682,146.63,146.59,14.23821429]
[1751739041093,5.08338682,146.62,146.59,14.23821429]
[1751739041293,5.08338682,146.61,146.59,14.23821429]
[1751739041498,11.90427004,146.61,146.59,7.12]
[1751739041690,6.82002722,146.63,146.6,7.11821429]
[1751739041892,5.0855884,146.62,146.6,7.11821429]
[1751739042104,6.82002722,146.63,146.6,7.11821429]
[1751739042304,5.08553771,146.62,146.6,7.11821429]
[1751739042590,6.82002722,146.63,146.6,7.11821429]
[1751739042909,5.08497353,146.62,146.6,7.11821429]
[1751739043110,5.08467633,146.62,146.6,7.11821429]
[1751739043290,5.08467633,146.63,146.6,7.11821429]
[1751739043491,5.08467633,146.62,146.6,7.11821429]
[1751739043798,5.08467633,146.63,146.6,7.11821429]
[1751739044008,5.08467633,146.62,146.6,7.11821429]
[1751739044192,5.08467633,146.63,146.6,7.11821429]
[1751739044386,5.08467633,146.62,146.6,7.11821429]
[1751739044700,5.08467633,146.63,146.61,7.11821429]
[1751739046507,5.08575136,146.63,146.61,7.11821429]
[1751739051012,11.90572005,146.63,146.6,7.11821429]
[1751739051210,5.08575136,146.62,146.6,7.11821429]
[1751739051712,5.08575136,146.62,146.59,14.23821429]
[1751739052313,11.90572005,146.63,146.59,7.12]
[1751739052504,5.08575136,146.62,146.59,7.12]
[1751739053204,6.82081713,146.61,146.59,7.12]
[1751739053402,11.90656849,146.61,146.59,7.12]
[1751739053602,6.82081713,146.61,146.59,7.12]
[1751739054310,5.08453401,146.61,146.59,7.12]
[1751739054803,6.82035193,146.62,146.59,7.12]
[1751739055002,11.90488594,146.62,146.59,7.12]
[1751739057530,5.08453401,146.61,146.59,7.12]
[1751739058318,11.90488594,146.62,146.59,7.12]
[1751739062323,5.08453401,146.61,146.59,7.12]
[1751739063932,11.9054136,146.61,146.59,7.12]
[1751739064227,6.82087959,146.61,146.59,14.23821429]
[1751739064624,11.906079,146.61,146.59,14.23821429]
[1751739064923,6.82087959,146.61,146.59,14.23821429]
[1751739065333,11.90798653,146.61,146.59,14.23821429]
[1751739065532,6.82087959,146.61,146.59,14.23821429]
[1751739065918,11.90862657,146.61,146.59,14.23821429]
[1751739066230,6.82087959,146.61,146.59,14.23821429]
[1751739066615,11.90954585,146.61,146.59,14.23821429]
[1751739066818,6.82087959,146.61,146.59,14.23821429]
[1751739067017,6.82087959,146.61,146.59,7.12]
[1751739067218,11.90955537,146.61,146.59,7.12]
[1751739067419,6.82087959,146.61,146.59,7.12]
[1751739067828,11.90987652,146.61,146.59,7.12]
[1751739068033,6.82087959,146.61,146.59,7.12]
[1751739068407,11.90958232,146.61,146.59,7.12]
[1751739068607,6.82087959,146.61,146.59,7.12]
[1751739069025,11.90995727,146.61,146.59,7.12]
[1751739069226,6.82087959,146.61,146.59,7.12]
[1751739069726,11.91079604,146.61,146.59,7.12]
[1751739069931,6.82087959,146.61,146.59,7.12]
[1751739070309,11.91086536,146.61,146.59,7.12]
[1751739070511,6.82087959,146.61,146.59,7.12]
[1751739070923,11.91184801,146.61,146.59,7.12]
[1751739071116,6.82087959,146.61,146.59,7.12]
[1751739073332,5.09388112,146.6,146.59,7.12]
[1751739075140,5.09388112,146.61,146.59,14.23821429]
[1751739075316,6.82053777,146.62,146.59,14.23821429]
[1751739075514,5.09540831,146.61,146.59,14.23821429]
[1751739075815,6.82053777,146.62,146.59,14.23821429]
[1751739076132,5.09540957,146.61,146.59,14.23821429]
[1751739076329,6.82053777,146.62,146.59,14.23821429]
[1751739076634,5.09641883,146.61,146.59,14.23821429]
[1751739076812,6.85053777,146.62,146.59,14.23821429]
[1751739077015,5.09503774,146.61,146.59,14.23821429]
[1751739077212,6.85053777,146.62,146.59,14.23821429]
[1751739077422,5.09458155,146.61,146.59,7.11821429]
[1751739077749,6.85053777,146.62,146.59,7.11821429]
[1751739077936,5.09541917,146.61,146.59,4.55261125]
[1751739078235,0.03,146.62,146.59,4.55261125]
[1751739078435,5.09694733,146.61,146.59,4.55261125]
[1751739078627,5.09694733,146.6,146.59,4.55261125]
[1751739083724,5.09694733,146.6,146.58,4.55261125]
[1751739083924,6.85068862,146.62,146.58,4.55261125]
[1751739084126,5.1033325,146.61,146.58,4.55261125]
[1751739084324,5.1033325,146.6,146.58,4.55261125]
[1751739084546,6.85068862,146.62,146.58,4.55261125]
[1751739084725,5.10416262,146.61,146.58,4.55261125]
[1751739084925,5.10416262,146.6,146.58,4.55261125]
[1751739085130,6.85068862,146.62,146.58,4.55261125]
[1751739085328,5.10423775,146.61,146.58,4.55261125]
[1751739085531,5.10423775,146.6,146.58,4.55261125]
[1751739085731,6.85068862,146.62,146.58,4.55261125]
[1751739086022,5.10417274,146.61,146.58,4.55261125]
[1751739086231,5.10417274,146.6,146.58,4.55261125]
[1751739086527,6.85068862,146.62,146.58,4.55261125]
[1751739086714,5.10324213,146.61,146.58,4.55261125]
[1751739086915,5.10324213,146.6,146.58,4.55261125]
[1751739087114,6.85068862,146.62,146.58,4.55261125]
[1751739087338,5.10331405,146.61,146.58,4.55261125]
[1751739087523,5.10331405,146.6,146.58,4.55261125]
[1751739087731,6.85068862,146.62,146.58,4.55261125]
[1751739087935,5.10353599,146.61,146.58,4.55261125]
[1751739088235,5.10353599,146.6,146.58,4.55261125]
[1751739088429,6.85068862,146.62,146.58,4.55261125]
[1751739088630,5.10361833,146.61,146.58,4.55261125]
[1751739088833,5.10361833,146.6,146.58,4.55261125]
[1751739089148,6.85068862,146.62,146.59,4.55261125]
[1751739089322,5.10368988,146.61,146.59,4.55261125]
[1751739089522,5.10368988,146.6,146.59,4.55261125]
[1751739093752,5.10368988,146.6,146.58,4.55261125]
[1751739094050,5.10495571,146.59,146.56,0.06]
[1751739094341,5.10495571,146.58,146.56,4.61261125]
[1751739094546,5.10495571,146.57,146.56,4.61261125]
[1751739097527,5.10495571,146.57,146.56,0.06]
[1751739098244,11.92763429,146.57,146.56,0.06]
[1751739100952,30.57728315,146.57,146.56,0.06]
[1751739114040,25.47232744,146.57,146.56,0.06]
[1751739114240,30.55701559,146.57,146.56,0.06]
[1751739115441,30.55583748,146.57,146.56,0.06]
[1751739118271,11.90618862,146.57,146.56,0.06]
[1751739118474,30.55583748,146.57,146.56,0.06]
[1751739119480,30.58583748,146.57,146.56,0.06]
[1751739124078,11.93618862,146.57,146.56,0.06]
[1751739124276,30.58583748,146.57,146.56,0.06]
[1751739129288,5.11351004,146.57,146.56,0.06]
[1751739129491,0.03,146.57,146.56,4.61261125]
[1751739129697,0.03,146.57,146.56,0.06]
[1751739131267,5.11351004,146.57,146.56,0.06]
[1751739137894,5.11351004,146.57,146.56,4.61261125]
[1751739138468,0.03,146.57,146.56,0.06]
[1751739138668,0.03,146.57,146.56,4.61261125]
[1751739139700,0.03,146.57,146.56,11.43575535]
[1751739141780,0.03,146.57,146.56,4.61261125]
[1751739150996,0.03,146.57,146.56,11.43575535]
[1751739152283,0.03,146.57,146.56,4.61261125]
[1751739152503,0.03,146.57,146.56,11.43575535]
[1751739161021,0.03,146.57,146.56,4.61261125]
[1751739161703,0.03,146.57,146.56,0.06]
[1751739169326,5.11962063,146.57,146.56,0.06]
[1751739170510,5.11962063,146.57,146.56,4.61261125]
[1751739170713,5.11962063,146.57,146.56,0.06]
[1751739174635,11.94229921,146.57,146.56,0.06]
[1751739177740,5.11962063,146.57,146.56,0.06]
[1751739182939,5.11962063,146.57,146.56,4.61261125]
[1751739183636,0.03,146.57,146.56,4.61261125]
[1751739187542,0.03,146.57,146.56,11.43575535]
[1751739190649,0.03,146.57,146.56,29.64620035]
[1751739190833,0.03,146.57,146.56,29.78836192]
[1751739193550,0.03,146.6,146.59,4.55261125]
[1751739194751,0.03,146.6,146.59,11.37435898]
[1751739208551,0.03,146.6,146.58,13.88209749]
[1751739208756,0.03,146.6,146.58,7.06]
[1751739212250,0.03,146.6,146.57,4.55261125]
[1751739215661,0.03,146.6,146.58,4.55261125]
[1751739217239,0.03,146.6,146.59,4.55261125]
[1751739219963,0.03,146.6,146.59,11.37435898]
[1751739235074,0.03,146.6,146.59,30.84834418]
[1751739236772,0.03,146.62,146.61,26.0]
[1751739236975,0.03,146.62,146.61,30.55261125]
[1751739237980,0.03,146.62,146.61,37.37342838]
[1751739248502,0.03,146.62,146.61,63.90732052]
[1751739250585,0.03,146.63,146.61,63.90732052]
[1751739250794,0.03,146.63,146.62,23.20226011]
[1751739252296,0.03,146.63,146.62,30.02261204]
[1751739254681,0.03,146.63,146.62,11.37296318]
[1751739254998,0.03,146.63,146.62,6.82035193]
[1751739255195,0.03,146.63,146.62,11.37296318]
[1751739257790,0.03,146.63,146.62,4.55261125]
[1751739258579,0.03,146.63,146.62,11.37296318]
[1751739259485,0.03,146.63,146.61,39.88067723]
[1751739259691,0.03,146.63,146.62,4.55261125]
[1751739261899,0.03,146.63,146.61,39.88067723]
[1751739262083,0.03,146.63,146.62,4.55261125]
[1751739267186,0.03,146.63,146.62,11.37296318]
[1751739275387,0.03,146.63,146.62,11.43296318]
[1751739276711,0.03,146.63,146.62,4.61261125]
[1751739277031,0.03,146.63,146.62,0.06]
[1751739277032,1.6249,146.63,146.62,0.06]
[1751739277188,6.71013988,146.63,146.62,0.06]
[1751739278890,13.53002666,146.63,146.62,0.06]
[1751739283910,32.32183709,146.63,146.62,0.06]
[1751739284115,18.64964886,146.62,146.6,0.06]
[1751739284317,23.73488874,146.61,146.6,0.06]
[1751739285919,30.55570587,146.61,146.6,0.06]
[1751739294037,25.47046599,146.61,146.6,0.06]
[1751739294200,30.53426623,146.61,146.6,0.06]
[1751739297525,11.88461737,146.61,146.6,0.06]
[1751739297715,6.82081713,146.61,146.6,0.06]
[1751739299206,41.31055153,146.62,146.6,0.06]
[1751739299929,6.85055153,146.62,146.6,0.06]
[1751739300129,11.91524634,146.62,146.6,0.06]
[1751739300306,0.03,146.62,146.6,0.06]
[1751739301703,6.85037009,146.62,146.6,0.06]
[1751739302212,11.9180102,146.62,146.6,0.06]
[1751739306120,5.09764011,146.62,146.6,0.06]
[1751739306318,0.03,146.62,146.6,0.06]
[1751739308740,0.03,146.62,146.6,4.61261125]
[1751739310024,0.03,146.62,146.61,4.55261125]
[1751739311232,0.03,146.62,146.61,11.37342838]
[1751739312525,0.03,146.62,146.61,4.55261125]
[1751739330652,0.03,146.62,146.61,11.37342838]
[1751739339156,0.03,146.62,146.61,4.55261125]
[1751739339676,0.03,146.62,146.61,4.61261125]
[1751739349668,5.11755686,146.62,146.61,4.61261125]
[1751739349865,5.11755686,146.62,146.61,11.43342838]
[1751739349866,0.03,146.62,146.61,11.43342838]
[1751739351377,5.11965734,146.62,146.61,0.06]
[1751739352067,11.94000927,146.62,146.61,0.06]
[1751739352281,32.19445813,146.62,146.61,0.06]
[1751739352459,38.54567604,146.62,146.61,0.06]
[1751739356281,32.19445813,146.62,146.61,0.06]
[1751739356463,18.64964886,146.61,146.6,0.06]
[1751739356667,30.09105963,146.61,146.6,0.06]
[1751739356879,30.2332212,146.61,146.6,0.06]
[1751739357082,23.88146777,146.61,146.6,0.06]
[1751739357262,30.22037784,146.61,146.6,0.06]
[1751739357885,30.69373454,146.61,146.6,0.06]
[1751739358386,37.03782614,146.61,146.6,0.06]
[1751739359679,30.69373454,146.61,146.6,0.06]
[1751739360878,30.69373454,146.61,146.6,1e-08]
[1751739361078,0.14216157,146.6,146.56,0.06]
[1751739361277,18.64964886,146.58,146.56,0.06]
[1751739361491,23.73075584,146.57,146.56,0.06]
[1751739362370,25.37875584,146.57,146.56,0.06]
[1751739363175,32.20143442,146.57,146.56,0.06]
[1751739365980,5.08110698,146.57,146.56,0.06]
[1751739366196,6.8212824,146.6,146.56,4.61261125]
[1751739366383,41.2612824,146.6,146.56,4.61261125]